[Event "Titled Tuesday Blitz May 4 2021"]
[White "Avila Pavas, Santiago"]
[Black "Visakh N R"]
[WhiteFideId "4437128"]
[BlackFideId "25012223"]
[WhiteElo "2619"]
[BlackElo "2807"]
[Result "1-0"]
[Round "03"]
[TimeControl "180+1"]
[Date "2021.05.04"]
[WhiteClock "0:00:05"]
[BlackClock "0:00:07"]

1. d4 {[%clk 0:03:00]}  Nf6 {[%clk 0:02:56]} 2. Nf3 {[%clk 0:03:00]}  g6 {[%clk 0:02:56]} 3. Bg5 {[%clk 0:03:01]}  Bg7 {[%clk 0:02:56]} 4. Nbd2 {[%clk 0:03:01]}  d5 {[%clk 0:02:55]} 5. e3 {[%clk 0:03:01]}  O-O {[%clk 0:02:54]} 6. Be2 {[%clk 0:03:02]}  c5 {[%clk 0:02:53]} 7. c3 {[%clk 0:03:02]}  Qb6 {[%clk 0:02:43]} 8. Qb3 {[%clk 0:02:37]}  Qa5 {[%clk 0:02:29]} 9. Bxf6 {[%clk 0:02:28]}  Bxf6 {[%clk 0:02:27]} 10. Qxd5 {[%clk 0:02:28]}  Nd7 {[%clk 0:02:16]} 11. O-O {[%clk 0:02:19]}  e6 {[%clk 0:02:06]} 12. Qd6 {[%clk 0:02:17]}  cxd4 {[%clk 0:02:01]} 13. exd4 {[%clk 0:02:15]}  Nb6 {[%clk 0:02:00]} 14. Ne4 {[%clk 0:02:05]}  Bg7 {[%clk 0:01:59]} 15. Qc5 {[%clk 0:01:32]}  Qxc5 {[%clk 0:01:52]} 16. Nxc5 {[%clk 0:01:33]}  Nd7 {[%clk 0:01:50]} 17. Ne4 {[%clk 0:01:29]}  Rd8 {[%clk 0:01:29]} 18. Nd6 {[%clk 0:01:24]}  Nb6 {[%clk 0:01:29]} 19. Nxc8 {[%clk 0:01:22]}  Raxc8 {[%clk 0:01:30]} 20. Rfd1 {[%clk 0:01:18]}  Kf8 {[%clk 0:01:23]} 21. Rac1 {[%clk 0:01:17]}  Ke7 {[%clk 0:01:23]} 22. g3 {[%clk 0:01:15]}  a6 {[%clk 0:01:22]} 23. Ne5 {[%clk 0:00:56]}  Rc7 {[%clk 0:01:18]} 24. f4 {[%clk 0:00:55]}  Nd7 {[%clk 0:01:14]} 25. Kf2 {[%clk 0:00:54]}  Nxe5 {[%clk 0:01:02]} 26. dxe5 {[%clk 0:00:50]}  Rxd1 {[%clk 0:01:00]} 27. Rxd1 {[%clk 0:00:50]}  Rd7 {[%clk 0:01:00]} 28. Rxd7+ {[%clk 0:00:50]}  Kxd7 {[%clk 0:01:00]} 29. Bf3 {[%clk 0:00:51]}  Kc7 {[%clk 0:00:59]} 30. Ke3 {[%clk 0:00:51]}  f6 {[%clk 0:00:58]} 31. exf6 {[%clk 0:00:49]}  Bxf6 {[%clk 0:00:59]} 32. Ke4 {[%clk 0:00:49]}  a5 {[%clk 0:00:55]} 33. Be2 {[%clk 0:00:43]}  Kd6 {[%clk 0:00:53]} 34. Bb5 {[%clk 0:00:43]}  b6 {[%clk 0:00:48]} 35. g4 {[%clk 0:00:38]}  Bh4 {[%clk 0:00:46]} 36. g5 {[%clk 0:00:36]}  Bf2 {[%clk 0:00:45]} 37. h3 {[%clk 0:00:34]}  Bg1 {[%clk 0:00:38]} 38. Be8 {[%clk 0:00:33]}  Bf2 {[%clk 0:00:37]} 39. Bf7 {[%clk 0:00:23]}  Ke7 {[%clk 0:00:36]} 40. Bg8 {[%clk 0:00:23]}  Bc5 {[%clk 0:00:32]} 41. h4 {[%clk 0:00:22]}  Bd6 {[%clk 0:00:28]} 42. b3 {[%clk 0:00:18]}  Bc7 {[%clk 0:00:27]} 43. c4 {[%clk 0:00:18]}  Bd6 {[%clk 0:00:26]} 44. Kf3 {[%clk 0:00:11]}  e5 {[%clk 0:00:20]} 45. Bxh7 {[%clk 0:00:10]}  Kf7 {[%clk 0:00:12]} 46. f5 {[%clk 0:00:11]}  gxf5 {[%clk 0:00:12]} 47. Bxf5 {[%clk 0:00:12]}  Be7 {[%clk 0:00:12]} 48. Ke4 {[%clk 0:00:10]}  Bb4 {[%clk 0:00:10]} 49. Kf3 {[%clk 0:00:06]}  Be1 {[%clk 0:00:09]} 50. Kg4 {[%clk 0:00:06]}  Bd2 {[%clk 0:00:08]} 51. h5 {[%clk 0:00:06]}  Bc1 {[%clk 0:00:08]} 52. Be4 {[%clk 0:00:06]}  Bd2 {[%clk 0:00:08]} 53. h6 {[%clk 0:00:06]}  Ke6 {[%clk 0:00:07]} 54. h7 {[%clk 0:00:05]} 1-0


[Site "https://www.chess.com"]

[Event "Titled Tuesday Blitz May 4 2021"]
[White "Baches Garcia, Guillermo"]
[Black "Lopez Gracia, Fernando"]
[WhiteFideId "2209764"]
[BlackFideId "2207184"]
[WhiteElo "2459"]
[BlackElo "2330"]
[Result "1-0"]
[Round "03"]
[TimeControl "180+1"]
[Date "2021.05.04"]
[WhiteClock "0:00:23"]
[BlackClock "0:00:26"]

1. e4 {[%clk 0:03:00]}  e5 {[%clk 0:02:59]} 2. Nf3 {[%clk 0:03:00]}  Nc6 {[%clk 0:03:00]} 3. Bb5 {[%clk 0:03:00]}  a6 {[%clk 0:03:00]} 4. Ba4 {[%clk 0:03:00]}  Nf6 {[%clk 0:03:00]} 5. O-O {[%clk 0:03:00]}  Bc5 {[%clk 0:03:01]} 6. c3 {[%clk 0:02:57]}  b5 {[%clk 0:03:01]} 7. Bc2 {[%clk 0:02:56]}  d6 {[%clk 0:03:02]} 8. d4 {[%clk 0:02:56]}  Ba7 {[%clk 0:03:03]} 9. Be3 {[%clk 0:02:52]}  O-O {[%clk 0:02:49]} 10. Nbd2 {[%clk 0:02:49]}  Re8 {[%clk 0:02:44]} 11. h3 {[%clk 0:02:46]}  exd4 {[%clk 0:02:44]} 12. cxd4 {[%clk 0:02:43]}  Nb4 {[%clk 0:02:43]} 13. Bb1 {[%clk 0:02:42]}  c5 {[%clk 0:02:40]} 14. Re1 {[%clk 0:02:32]}  Bb7 {[%clk 0:02:29]} 15. d5 {[%clk 0:02:24]}  a5 {[%clk 0:02:26]} 16. Qe2 {[%clk 0:02:13]}  c4 {[%clk 0:02:24]} 17. Bxa7 {[%clk 0:02:01]}  Rxa7 {[%clk 0:02:25]} 18. Qe3 {[%clk 0:01:58]}  Ra8 {[%clk 0:02:25]} 19. Qd4 {[%clk 0:01:56]}  Nd7 {[%clk 0:02:22]} 20. a4 {[%clk 0:01:51]}  bxa4 {[%clk 0:01:51]} 21. Nxc4 {[%clk 0:01:43]}  Nc5 {[%clk 0:01:51]} 22. Nfd2 {[%clk 0:01:13]}  Ba6 {[%clk 0:01:50]} 23. e5 {[%clk 0:01:04]}  Rc8 {[%clk 0:01:27]} 24. Nxd6 {[%clk 0:00:58]}  Qxd6 {[%clk 0:01:15]} 25. exd6 {[%clk 0:00:57]}  Rxe1+ {[%clk 0:01:16]} 26. Kh2 {[%clk 0:00:57]}  Nc2 {[%clk 0:01:17]} 27. Bxc2 {[%clk 0:00:28]}  Rxa1 {[%clk 0:01:17]} 28. Bf5 {[%clk 0:00:28]}  Rc1 {[%clk 0:00:49]} 29. Bxc8 {[%clk 0:00:24]}  Bxc8 {[%clk 0:00:50]} 30. Qe5 {[%clk 0:00:23]}  Nd7 {[%clk 0:00:45]} 31. Qe8+ {[%clk 0:00:23]}  Nf8 {[%clk 0:00:46]} 32. Ne4 {[%clk 0:00:22]}  Bd7 {[%clk 0:00:45]} 33. Qd8 {[%clk 0:00:22]}  h6 {[%clk 0:00:34]} 34. Qxa5 {[%clk 0:00:22]}  Rc2 {[%clk 0:00:31]} 35. Nc5 {[%clk 0:00:22]}  Rxb2 {[%clk 0:00:26]} 36. Nxd7 {[%clk 0:00:22]}  Nxd7 {[%clk 0:00:27]} 37. Qd8+ {[%clk 0:00:22]}  Nf8 {[%clk 0:00:27]} 38. d7 {[%clk 0:00:23]}  Rd2 {[%clk 0:00:27]} 39. Qxf8+ {[%clk 0:00:23]}  Kxf8 {[%clk 0:00:26]} 40. d8=Q# {[%clk 0:00:23]} 1-0


[Site "https://www.chess.com"]

[Event "Titled Tuesday Blitz May 4 2021"]
[White "Baglan, Esat"]
[Black "Aslanov, Umid"]
[WhiteFideId "6309216"]
[BlackFideId "13412620"]
[WhiteElo "2107"]
[BlackElo "1796"]
[Result "1-0"]
[Round "03"]
[TimeControl "180+1"]
[Date "2021.05.04"]
[WhiteClock "0:01:11"]
[BlackClock "0:00:09"]

1. e4 {[%clk 0:02:58]}  c5 {[%clk 0:03:00]} 2. Nc3 {[%clk 0:02:57]}  d6 {[%clk 0:02:59]} 3. d4 {[%clk 0:02:57]}  cxd4 {[%clk 0:03:00]} 4. Qxd4 {[%clk 0:02:57]}  Nf6 {[%clk 0:02:58]} 5. b3 {[%clk 0:02:56]}  g6 {[%clk 0:02:52]} 6. Bb2 {[%clk 0:02:56]}  Bg7 {[%clk 0:02:52]} 7. O-O-O {[%clk 0:02:56]}  O-O {[%clk 0:02:52]} 8. Qd2 {[%clk 0:02:50]}  Nc6 {[%clk 0:02:48]} 9. f3 {[%clk 0:02:50]}  a6 {[%clk 0:02:46]} 10. Kb1 {[%clk 0:02:50]}  b5 {[%clk 0:02:38]} 11. h4 {[%clk 0:02:51]}  Rb8 {[%clk 0:02:13]} 12. h5 {[%clk 0:02:49]}  Qc7 {[%clk 0:01:36]} 13. hxg6 {[%clk 0:02:44]}  fxg6 {[%clk 0:01:36]} 14. Nge2 {[%clk 0:02:43]}  Be6 {[%clk 0:01:35]} 15. Nf4 {[%clk 0:02:43]}  Bf7 {[%clk 0:01:35]} 16. Ncd5 {[%clk 0:02:43]}  Nxd5 {[%clk 0:01:21]} 17. Bxg7 {[%clk 0:02:32]}  Kxg7 {[%clk 0:01:19]} 18. Nxd5 {[%clk 0:02:32]}  Bxd5 {[%clk 0:01:19]} 19. Qh6+ {[%clk 0:02:32]}  Kf7 {[%clk 0:01:19]} 20. Qxh7+ {[%clk 0:02:32]}  Ke8 {[%clk 0:01:19]} 21. exd5 {[%clk 0:02:16]}  Ne5 {[%clk 0:01:19]} 22. Bd3 {[%clk 0:02:16]}  Rf6 {[%clk 0:01:15]} 23. Qg7 {[%clk 0:01:57]}  Kd7 {[%clk 0:00:45]} 24. Be4 {[%clk 0:01:47]}  Rbf8 {[%clk 0:00:32]} 25. Rh7 {[%clk 0:01:37]}  R8f7 {[%clk 0:00:23]} 26. Qh6 {[%clk 0:01:34]}  Rxh7 {[%clk 0:00:23]} 27. Qxh7 {[%clk 0:01:35]}  Kc8 {[%clk 0:00:22]} 28. Rh1 {[%clk 0:01:33]}  Kb7 {[%clk 0:00:22]} 29. Qg8 {[%clk 0:01:30]}  Qc3 {[%clk 0:00:09]} 30. Qd8 {[%clk 0:01:12]}  Qe1+ {[%clk 0:00:09]} 31. Rxe1 {[%clk 0:01:11]} 1-0


[Site "https://www.chess.com"]

[Event "Titled Tuesday Blitz May 4 2021"]
[White "Banawa, Joel"]
[Black "Kalajzic, Ivan"]
[WhiteFideId "2024055"]
[BlackFideId "14506378"]
[WhiteElo "2676"]
[BlackElo "2163"]
[Result "1-0"]
[Round "03"]
[TimeControl "180+1"]
[Date "2021.05.04"]
[WhiteClock "0:00:36"]
[BlackClock "0:00:22"]

1. e4 {[%clk 0:03:00]}  Nc6 {[%clk 0:02:59]} 2. Nf3 {[%clk 0:03:00]}  d6 {[%clk 0:02:59]} 3. d4 {[%clk 0:02:59]}  Bg4 {[%clk 0:02:59]} 4. d5 {[%clk 0:02:59]}  Ne5 {[%clk 0:02:59]} 5. Nxe5 {[%clk 0:02:31]}  Bxd1 {[%clk 0:02:57]} 6. Bb5+ {[%clk 0:02:31]}  c6 {[%clk 0:02:55]} 7. dxc6 {[%clk 0:02:32]}  Qa5+ {[%clk 0:02:55]} 8. Nc3 {[%clk 0:02:31]}  a6 {[%clk 0:02:54]} 9. Nc4 {[%clk 0:02:14]}  Qxc3+ {[%clk 0:02:52]} 10. bxc3 {[%clk 0:02:14]}  axb5 {[%clk 0:02:50]} 11. Nb6 {[%clk 0:01:58]}  bxc6 {[%clk 0:02:41]} 12. Nxa8 {[%clk 0:01:58]}  Bxc2 {[%clk 0:02:39]} 13. f3 {[%clk 0:01:56]}  Kd7 {[%clk 0:02:23]} 14. a4 {[%clk 0:01:56]}  Bxa4 {[%clk 0:02:07]} 15. Nb6+ {[%clk 0:01:55]}  Kc7 {[%clk 0:02:08]} 16. Nxa4 {[%clk 0:01:56]}  bxa4 {[%clk 0:02:08]} 17. Rxa4 {[%clk 0:01:56]}  g6 {[%clk 0:01:42]} 18. Be3 {[%clk 0:01:56]}  c5 {[%clk 0:01:30]} 19. Kd2 {[%clk 0:01:56]}  Kd7 {[%clk 0:01:21]} 20. Rb1 {[%clk 0:01:53]}  Bg7 {[%clk 0:01:19]} 21. Rb7+ {[%clk 0:01:51]}  Ke6 {[%clk 0:01:19]} 22. Raa7 {[%clk 0:01:46]}  Bf6 {[%clk 0:01:15]} 23. f4 {[%clk 0:01:42]}  h5 {[%clk 0:01:07]} 24. Bxc5 {[%clk 0:01:43]}  Nh6 {[%clk 0:00:59]} 25. Bd4 {[%clk 0:01:43]}  Re8 {[%clk 0:00:53]} 26. Rb6 {[%clk 0:00:42]}  Rc8 {[%clk 0:00:39]} 27. e5 {[%clk 0:00:39]}  Bg7 {[%clk 0:00:34]} 28. exd6 {[%clk 0:00:36]}  Nf5 {[%clk 0:00:22]} 29. d7+ {[%clk 0:00:36]} 1-0


[Site "https://www.chess.com"]

[Event "Titled Tuesday Blitz May 4 2021"]
[White "Bartel, Michal"]
[Black "Batchimeg, Tuvshintugs"]
[WhiteFideId "1119257"]
[BlackFideId "4900839"]
[WhiteElo "2271"]
[BlackElo "2295"]
[Result "1-0"]
[Round "03"]
[TimeControl "180+1"]
[Date "2021.05.04"]
[WhiteClock "0:00:15"]
[BlackClock "0:00:04"]

1. e4 {[%clk 0:03:00]}  d5 {[%clk 0:02:58]} 2. exd5 {[%clk 0:02:52]}  Qxd5 {[%clk 0:02:59]} 3. Nc3 {[%clk 0:02:47]}  Qa5 {[%clk 0:02:58]} 4. g3 {[%clk 0:02:47]}  c6 {[%clk 0:02:52]} 5. Bg2 {[%clk 0:02:40]}  e5 {[%clk 0:02:47]} 6. d3 {[%clk 0:02:40]}  Nf6 {[%clk 0:02:43]} 7. h3 {[%clk 0:02:39]}  Bf5 {[%clk 0:02:15]} 8. Nf3 {[%clk 0:02:38]}  Nbd7 {[%clk 0:02:14]} 9. O-O {[%clk 0:02:38]}  Bd6 {[%clk 0:02:10]} 10. Re1 {[%clk 0:02:34]}  O-O {[%clk 0:02:09]} 11. Rb1 {[%clk 0:02:28]}  Rad8 {[%clk 0:02:05]} 12. Kh2 {[%clk 0:02:18]}  h6 {[%clk 0:02:00]} 13. Bd2 {[%clk 0:02:13]}  Qc7 {[%clk 0:01:50]} 14. b4 {[%clk 0:02:02]}  Rfe8 {[%clk 0:01:49]} 15. b5 {[%clk 0:01:38]}  Bh7 {[%clk 0:01:38]} 16. a4 {[%clk 0:01:32]}  e4 {[%clk 0:01:34]} 17. dxe4 {[%clk 0:01:31]}  Nxe4 {[%clk 0:01:33]} 18. Nxe4 {[%clk 0:01:32]}  Bxe4 {[%clk 0:01:32]} 19. Qc1 {[%clk 0:01:28]}  Nf6 {[%clk 0:01:28]} 20. Be3 {[%clk 0:01:13]}  b6 {[%clk 0:01:24]} 21. Qb2 {[%clk 0:00:57]}  cxb5 {[%clk 0:01:20]} 22. axb5 {[%clk 0:00:57]}  Qb7 {[%clk 0:01:14]} 23. Nh4 {[%clk 0:00:48]}  Bxg2 {[%clk 0:01:07]} 24. Nxg2 {[%clk 0:00:48]}  Qf3 {[%clk 0:01:01]} 25. Nh4 {[%clk 0:00:39]}  Qe4 {[%clk 0:00:43]} 26. Kg1 {[%clk 0:00:35]}  Be5 {[%clk 0:00:26]} 27. Qa2 {[%clk 0:00:31]}  Qb7 {[%clk 0:00:20]} 28. Rbd1 {[%clk 0:00:26]}  Nd5 {[%clk 0:00:20]} 29. Qc4 {[%clk 0:00:20]}  Nc3 {[%clk 0:00:19]} 30. Rxd8 {[%clk 0:00:19]}  Rxd8 {[%clk 0:00:19]} 31. Bxh6 {[%clk 0:00:17]}  Bf6 {[%clk 0:00:17]} 32. Bf4 {[%clk 0:00:15]}  Bxh4 {[%clk 0:00:17]} 33. gxh4 {[%clk 0:00:16]}  Nd5 {[%clk 0:00:16]} 34. Bg3 {[%clk 0:00:15]}  Nf6 {[%clk 0:00:15]} 35. Qc6 {[%clk 0:00:15]}  Qd7 {[%clk 0:00:13]} 36. Qxd7 {[%clk 0:00:14]}  Rxd7 {[%clk 0:00:14]} 37. Ra1 {[%clk 0:00:14]}  Ne4 {[%clk 0:00:13]} 38. Bb8 {[%clk 0:00:14]}  Nc3 {[%clk 0:00:12]} 39. Rxa7 {[%clk 0:00:14]}  Rd8 {[%clk 0:00:11]} 40. Bc7 {[%clk 0:00:14]}  Rd1+ {[%clk 0:00:10]} 41. Kg2 {[%clk 0:00:14]}  Nxb5 {[%clk 0:00:11]} 42. Ra8+ {[%clk 0:00:14]}  Kh7 {[%clk 0:00:11]} 43. Bxb6 {[%clk 0:00:15]}  Nc3 {[%clk 0:00:10]} 44. Rc8 {[%clk 0:00:15]}  Ne4 {[%clk 0:00:09]} 45. Be3 {[%clk 0:00:15]}  f6 {[%clk 0:00:08]} 46. Kf3 {[%clk 0:00:16]}  Nd6 {[%clk 0:00:08]} 47. Rc6 {[%clk 0:00:16]}  Nf5 {[%clk 0:00:08]} 48. c4 {[%clk 0:00:16]}  Rd3 {[%clk 0:00:07]} 49. Ke4 {[%clk 0:00:16]}  Nxe3 {[%clk 0:00:05]} 50. Kxd3 {[%clk 0:00:16]}  Nf5 {[%clk 0:00:04]} 51. Rc8 {[%clk 0:00:15]} 1-0


[Site "https://www.chess.com"]

[Event "Titled Tuesday Blitz May 4 2021"]
[White "Bendayan Claros, Aaron"]
[Black "Donatti, Alvaro"]
[WhiteFideId "3803392"]
[BlackFideId "3000303"]
[WhiteElo "2166"]
[BlackElo "2138"]
[Result "1-0"]
[Round "03"]
[TimeControl "180+1"]
[Date "2021.05.04"]
[WhiteClock "0:00:08"]
[BlackClock "0:00:01"]

1. d4 {[%clk 0:03:00]}  d5 {[%clk 0:02:57]} 2. Nf3 {[%clk 0:02:59]}  Nf6 {[%clk 0:02:56]} 3. c4 {[%clk 0:02:59]}  c6 {[%clk 0:02:55]} 4. Nc3 {[%clk 0:02:55]}  e6 {[%clk 0:02:54]} 5. g3 {[%clk 0:02:55]}  Be7 {[%clk 0:02:52]} 6. Bg2 {[%clk 0:02:55]}  O-O {[%clk 0:02:52]} 7. O-O {[%clk 0:02:55]}  Nbd7 {[%clk 0:02:50]} 8. Nd2 {[%clk 0:02:53]}  a6 {[%clk 0:02:46]} 9. e4 {[%clk 0:02:52]}  dxe4 {[%clk 0:02:34]} 10. Ndxe4 {[%clk 0:02:53]}  Nxe4 {[%clk 0:02:33]} 11. Nxe4 {[%clk 0:02:53]}  Nf6 {[%clk 0:02:33]} 12. Nc3 {[%clk 0:02:52]}  Qc7 {[%clk 0:02:23]} 13. Bf4 {[%clk 0:02:47]}  Qb6 {[%clk 0:02:20]} 14. b3 {[%clk 0:02:39]}  a5 {[%clk 0:02:07]} 15. Na4 {[%clk 0:02:24]}  Qa6 {[%clk 0:02:06]} 16. c5 {[%clk 0:02:19]}  Nd5 {[%clk 0:01:58]} 17. Bd2 {[%clk 0:01:43]}  Qd3 {[%clk 0:01:44]} 18. Bc1 {[%clk 0:01:24]}  Qxd1 {[%clk 0:01:30]} 19. Rxd1 {[%clk 0:01:24]}  Bf6 {[%clk 0:01:29]} 20. Bb2 {[%clk 0:01:14]}  Rd8 {[%clk 0:01:23]} 21. f4 {[%clk 0:01:08]}  Bd7 {[%clk 0:01:21]} 22. a3 {[%clk 0:00:19]}  Ne3 {[%clk 0:01:17]} 23. Rd3 {[%clk 0:00:14]}  Nf5 {[%clk 0:00:44]} 24. Rad1 {[%clk 0:00:14]}  Be8 {[%clk 0:00:40]} 25. Kf2 {[%clk 0:00:13]}  h5 {[%clk 0:00:38]} 26. h3 {[%clk 0:00:12]}  Ne7 {[%clk 0:00:35]} 27. Nb6 {[%clk 0:00:10]}  Rab8 {[%clk 0:00:33]} 28. a4 {[%clk 0:00:07]}  Nf5 {[%clk 0:00:33]} 29. Nc4 {[%clk 0:00:06]}  Rd7 {[%clk 0:00:23]} 30. Nxa5 {[%clk 0:00:06]}  Kf8 {[%clk 0:00:19]} 31. g4 {[%clk 0:00:04]}  hxg4 {[%clk 0:00:18]} 32. hxg4 {[%clk 0:00:05]}  Nh4 {[%clk 0:00:18]} 33. Bh1 {[%clk 0:00:05]}  Be7 {[%clk 0:00:17]} 34. Nc4 {[%clk 0:00:04]}  Ng6 {[%clk 0:00:17]} 35. Ke3 {[%clk 0:00:04]}  Rbd8 {[%clk 0:00:15]} 36. Ne5 {[%clk 0:00:04]}  Nxe5 {[%clk 0:00:13]} 37. fxe5 {[%clk 0:00:04]}  Bg5+ {[%clk 0:00:13]} 38. Kf2 {[%clk 0:00:04]}  f6 {[%clk 0:00:12]} 39. Be4 {[%clk 0:00:04]}  fxe5 {[%clk 0:00:10]} 40. dxe5 {[%clk 0:00:05]}  Rxd3 {[%clk 0:00:09]} 41. Rxd3 {[%clk 0:00:06]}  Rxd3 {[%clk 0:00:09]} 42. Bxd3 {[%clk 0:00:07]}  Be7 {[%clk 0:00:08]} 43. Bd4 {[%clk 0:00:07]}  Bf7 {[%clk 0:00:07]} 44. b4 {[%clk 0:00:07]}  Ke8 {[%clk 0:00:07]} 45. Kf3 {[%clk 0:00:07]}  Kd7 {[%clk 0:00:07]} 46. Be4 {[%clk 0:00:08]}  Kc7 {[%clk 0:00:07]} 47. Be3 {[%clk 0:00:08]}  Bd8 {[%clk 0:00:06]} 48. b5 {[%clk 0:00:09]}  Be7 {[%clk 0:00:05]} 49. Ke2 {[%clk 0:00:08]}  Be8 {[%clk 0:00:03]} 50. Kd3 {[%clk 0:00:09]}  Bh4 {[%clk 0:00:02]} 51. Kc4 {[%clk 0:00:09]}  Be1 {[%clk 0:00:01]} 52. Bd4 {[%clk 0:00:08]}  Bd2 {[%clk 0:00:01]} 53. Bh7 {[%clk 0:00:08]} 1-0


[Site "https://www.chess.com"]

[Event "Titled Tuesday Blitz May 4 2021"]
[White "Bonte, Andrei-Mihai"]
[Black "Garcia Garcia, Alejandro"]
[WhiteFideId "1210297"]
[BlackFideId "3516334"]
[WhiteElo "2200"]
[BlackElo "2131"]
[Result "1-0"]
[Round "03"]
[TimeControl "180+1"]
[Date "2021.05.04"]
[WhiteClock "0:00:17"]
[BlackClock "0:00:41"]

1. d4 {[%clk 0:02:53]}  Nf6 {[%clk 0:02:59]} 2. c4 {[%clk 0:02:46]}  g6 {[%clk 0:02:59]} 3. Nc3 {[%clk 0:02:45]}  Bg7 {[%clk 0:03:00]} 4. e4 {[%clk 0:02:45]}  d6 {[%clk 0:03:00]} 5. Nf3 {[%clk 0:02:45]}  O-O {[%clk 0:03:00]} 6. Be2 {[%clk 0:02:46]}  e5 {[%clk 0:03:00]} 7. O-O {[%clk 0:02:46]}  exd4 {[%clk 0:03:01]} 8. Nxd4 {[%clk 0:02:46]}  Re8 {[%clk 0:03:02]} 9. f3 {[%clk 0:02:47]}  c6 {[%clk 0:03:03]} 10. Nc2 {[%clk 0:02:47]}  d5 {[%clk 0:03:03]} 11. cxd5 {[%clk 0:02:40]}  cxd5 {[%clk 0:03:03]} 12. Bb5 {[%clk 0:02:40]}  Bd7 {[%clk 0:03:03]} 13. Bxd7 {[%clk 0:02:32]}  Nbxd7 {[%clk 0:03:01]} 14. exd5 {[%clk 0:02:33]}  Nb6 {[%clk 0:03:01]} 15. Ne3 {[%clk 0:02:25]}  Bh6 {[%clk 0:02:47]} 16. f4 {[%clk 0:02:25]}  Rc8 {[%clk 0:02:38]} 17. Qd3 {[%clk 0:02:07]}  Nfd7 {[%clk 0:02:23]} 18. Ng4 {[%clk 0:01:49]}  Bg7 {[%clk 0:02:22]} 19. Be3 {[%clk 0:01:42]}  Nc5 {[%clk 0:02:19]} 20. Bxc5 {[%clk 0:01:36]}  Rxc5 {[%clk 0:02:18]} 21. Rad1 {[%clk 0:01:34]}  Nc4 {[%clk 0:02:15]} 22. Ne4 {[%clk 0:01:15]}  Nxb2 {[%clk 0:02:08]} 23. Qb1 {[%clk 0:01:13]}  Rc4 {[%clk 0:01:46]} 24. Rde1 {[%clk 0:00:58]}  Re7 {[%clk 0:01:08]} 25. Nef6+ {[%clk 0:00:55]}  Bxf6 {[%clk 0:00:55]} 26. Nxf6+ {[%clk 0:00:55]}  Kg7 {[%clk 0:00:55]} 27. Qxb2 {[%clk 0:00:55]}  Rxe1 {[%clk 0:00:55]} 28. Nh5+ {[%clk 0:00:34]}  Kf8 {[%clk 0:00:55]} 29. Qg7+ {[%clk 0:00:25]}  Ke7 {[%clk 0:00:54]} 30. Rxe1+ {[%clk 0:00:25]}  Kd6 {[%clk 0:00:55]} 31. Qe5+ {[%clk 0:00:22]}  Kc5 {[%clk 0:00:55]} 32. Nf6 {[%clk 0:00:20]}  Kb5 {[%clk 0:00:51]} 33. d6+ {[%clk 0:00:20]}  Rc5 {[%clk 0:00:50]} 34. Qe8+ {[%clk 0:00:19]}  Qxe8 {[%clk 0:00:49]} 35. Rxe8 {[%clk 0:00:20]}  Rc1+ {[%clk 0:00:47]} 36. Kf2 {[%clk 0:00:20]}  Rc2+ {[%clk 0:00:48]} 37. Re2 {[%clk 0:00:20]}  Rc6 {[%clk 0:00:42]} 38. Rd2 {[%clk 0:00:19]}  Rc8 {[%clk 0:00:41]} 39. d7 {[%clk 0:00:19]}  Rd8 {[%clk 0:00:41]} 40. Rc2 {[%clk 0:00:17]} 1-0


[Site "https://www.chess.com"]

[Event "Titled Tuesday Blitz May 4 2021"]
[White "Borawski, Jakub"]
[Black "Bongo Akanga Ndjila, Barthelemy"]
[WhiteFideId "1143000"]
[BlackFideId "10609431"]
[WhiteElo "2020"]
[BlackElo "1803"]
[Result "1-0"]
[Round "03"]
[TimeControl "180+1"]
[Date "2021.05.04"]
[WhiteClock "0:00:32"]
[BlackClock "0:00:01"]

1. e4 {[%clk 0:03:00]}  g6 {[%clk 0:02:57]} 2. d4 {[%clk 0:03:00]}  Bg7 {[%clk 0:02:56]} 3. Nc3 {[%clk 0:03:01]}  c5 {[%clk 0:02:54]} 4. Be3 {[%clk 0:03:01]}  Nc6 {[%clk 0:02:51]} 5. dxc5 {[%clk 0:02:58]}  Bxc3+ {[%clk 0:02:49]} 6. bxc3 {[%clk 0:02:58]}  Qa5 {[%clk 0:02:48]} 7. Qd2 {[%clk 0:02:52]}  Nf6 {[%clk 0:02:46]} 8. Bd3 {[%clk 0:02:46]}  Ne5 {[%clk 0:02:44]} 9. Ne2 {[%clk 0:02:41]}  O-O {[%clk 0:02:41]} 10. O-O {[%clk 0:02:33]}  Neg4 {[%clk 0:02:40]} 11. Bf4 {[%clk 0:02:10]}  Qxc5 {[%clk 0:02:28]} 12. h3 {[%clk 0:02:03]}  Ne5 {[%clk 0:02:23]} 13. Be3 {[%clk 0:02:03]}  Qa5 {[%clk 0:02:16]} 14. Bd4 {[%clk 0:01:57]}  d6 {[%clk 0:02:10]} 15. f4 {[%clk 0:01:55]}  Ned7 {[%clk 0:02:06]} 16. e5 {[%clk 0:01:41]}  dxe5 {[%clk 0:02:04]} 17. fxe5 {[%clk 0:01:41]}  Nxe5 {[%clk 0:02:03]} 18. Ng3 {[%clk 0:01:41]}  Be6 {[%clk 0:01:52]} 19. Rae1 {[%clk 0:01:38]}  Nc4 {[%clk 0:01:51]} 20. Qh6 {[%clk 0:01:32]}  Rad8 {[%clk 0:01:33]} 21. Rxf6 {[%clk 0:01:18]}  Rxd4 {[%clk 0:01:30]} 22. Rfxe6 {[%clk 0:00:59]}  Rxd3 {[%clk 0:01:29]} 23. cxd3 {[%clk 0:00:56]}  fxe6 {[%clk 0:01:18]} 24. dxc4 {[%clk 0:00:57]}  Qxc3 {[%clk 0:01:17]} 25. Qe3 {[%clk 0:00:57]}  Qxc4 {[%clk 0:01:04]} 26. Qxe6+ {[%clk 0:00:57]}  Qxe6 {[%clk 0:01:01]} 27. Rxe6 {[%clk 0:00:58]}  Rf7 {[%clk 0:00:57]} 28. Ne4 {[%clk 0:00:57]}  Kf8 {[%clk 0:00:52]} 29. Ng5 {[%clk 0:00:55]}  Rf5 {[%clk 0:00:51]} 30. Nxh7+ {[%clk 0:00:52]}  Kf7 {[%clk 0:00:50]} 31. Re3 {[%clk 0:00:44]}  e5 {[%clk 0:00:49]} 32. h4 {[%clk 0:00:43]}  Rh5 {[%clk 0:00:42]} 33. Ng5+ {[%clk 0:00:42]}  Kf6 {[%clk 0:00:42]} 34. g3 {[%clk 0:00:41]}  Rh8 {[%clk 0:00:37]} 35. Rf3+ {[%clk 0:00:39]}  Ke7 {[%clk 0:00:35]} 36. Rf7+ {[%clk 0:00:40]}  Kd6 {[%clk 0:00:34]} 37. Rxb7 {[%clk 0:00:41]}  Rc8 {[%clk 0:00:32]} 38. Rxa7 {[%clk 0:00:40]}  Rc2 {[%clk 0:00:31]} 39. Ra6+ {[%clk 0:00:37]}  Kd5 {[%clk 0:00:30]} 40. Rxg6 {[%clk 0:00:38]}  Rxa2 {[%clk 0:00:29]} 41. Rg8 {[%clk 0:00:35]}  e4 {[%clk 0:00:28]} 42. Rd8+ {[%clk 0:00:34]}  Ke5 {[%clk 0:00:22]} 43. Re8+ {[%clk 0:00:35]}  Kf5 {[%clk 0:00:22]} 44. Rxe4 {[%clk 0:00:35]}  Ra5 {[%clk 0:00:19]} 45. Rf4+ {[%clk 0:00:35]}  Kg6 {[%clk 0:00:19]} 46. Kg2 {[%clk 0:00:36]}  Ra2+ {[%clk 0:00:18]} 47. Kh3 {[%clk 0:00:36]}  Ra3 {[%clk 0:00:17]} 48. Nf3 {[%clk 0:00:36]}  Kh5 {[%clk 0:00:15]} 49. Rf5+ {[%clk 0:00:35]}  Kg6 {[%clk 0:00:13]} 50. Kg4 {[%clk 0:00:35]}  Kh6 {[%clk 0:00:13]} 51. Rf6+ {[%clk 0:00:35]}  Kg7 {[%clk 0:00:12]} 52. Kg5 {[%clk 0:00:34]}  Ra5+ {[%clk 0:00:11]} 53. Rf5 {[%clk 0:00:34]}  Ra3 {[%clk 0:00:10]} 54. g4 {[%clk 0:00:34]}  Kh7 {[%clk 0:00:09]} 55. h5 {[%clk 0:00:35]}  Kg7 {[%clk 0:00:08]} 56. Nh4 {[%clk 0:00:35]}  Ra4 {[%clk 0:00:06]} 57. Rb5 {[%clk 0:00:34]}  Ra7 {[%clk 0:00:05]} 58. Nf5+ {[%clk 0:00:34]}  Kh7 {[%clk 0:00:03]} 59. Rb6 {[%clk 0:00:34]}  Rc7 {[%clk 0:00:02]} 60. Rh6+ {[%clk 0:00:31]}  Kg8 {[%clk 0:00:01]} 61. Rg6+ {[%clk 0:00:32]} 1-0


[Site "https://www.chess.com"]